bitfinex/quotes_SOLUSD_20250531
["timestamp","ask_amount","ask_price","bid_price","bid_amount"]
[1748668812827,6.45587856,154.9,154.88,21.98406693]
[1748668813739,26.0,154.91,154.88,21.98406693]
[1748668813924,6.45522686,154.92,154.89,21.98406693]
[1748668814530,7.96771172,154.93,154.9,21.98406693]
[1748668814841,39.9,154.95,154.91,21.98406693]
[1748668815032,26.0,154.95,154.91,21.98406693]
[1748668815638,6.45428097,154.94,154.91,21.98406693]
[1748668816335,26.0,154.95,154.91,21.98406693]
[1748668816539,32.45373332,154.95,154.91,21.98406693]
[1748668816743,32.45373332,154.95,154.92,21.98406693]
[1748668817128,6.45373332,154.95,154.92,21.98406693]
[1748668817448,6.45327826,154.96,154.92,21.98406693]
[1748668818562,6.45327826,154.96,154.93,21.98406693]
[1748668819131,7.96597576,154.97,154.95,21.98406693]
[1748668819345,6.45297576,154.97,154.95,21.98406693]
[1748668820437,6.45297576,154.97,154.94,21.98406693]
[1748668821855,153.35257847,154.98,154.96,21.98406693]
[1748668822036,6.45257847,154.98,154.96,21.98406693]
[1748668823064,1.513,155.01,154.97,21.98406693]
[1748668823364,6.45078054,155.02,154.99,21.98406693]
[1748668823567,32.45078054,155.02,154.99,21.98406693]
[1748668824061,32.45078054,155.02,155.0,21.98406693]
[1748668824267,24.05260702,155.05,155.01,21.98406693]
[1748668824268,153.35051626,155.03,155.01,21.98406693]
[1748668824567,7.9278,155.05,155.02,21.98406693]
[1748668824868,26.0,155.04,155.03,21.98406693]
[1748668825042,8.03313702,155.05,155.03,21.98406693]
[1748668825556,34.03313702,155.05,155.03,21.98406693]
[1748668825738,8.03313702,155.05,155.02,21.98406693]
[1748668826051,8.03313702,155.05,154.98,0.28432314]
[1748668826052,6.44983702,155.05,155.04,21.98406693]
[1748668826253,44.55773497,155.05,155.0,21.98406693]
[1748668826551,21.98406693,155.04,155.0,21.98406693]
[1748668826972,72.14133497,155.05,155.0,21.98406693]
[1748668827531,34.03343702,155.05,155.02,21.98406693]
[1748668828258,6.44983702,155.05,155.02,21.98406693]
[1748668828639,6.44983702,155.05,154.99,16.93190958]
[1748668828640,6.44870058,155.07,155.04,21.98406693]
[1748668829155,6.44870058,155.07,155.03,21.98406693]
[1748668829558,28.43276751,155.07,155.02,21.98406693]
[1748668830334,44.55451897,155.07,155.02,21.98406693]
[1748668830550,21.98406693,155.06,155.02,21.98406693]
[1748668831440,44.55451897,155.07,155.02,21.98406693]
[1748668834066,21.98406693,155.06,155.01,21.98406693]
[1748668834238,47.98406693,155.05,154.99,10.48]
[1748668834446,6.45078054,155.02,154.99,10.48]
[1748668834639,6.45078054,155.02,154.96,18.64964886]
[1748668834839,6.45078054,155.02,154.98,21.98406693]
[1748668835258,6.4499484,155.04,155.01,21.98406693]
[1748668835751,6.4499484,155.04,155.0,21.98406693]
[1748668836361,6.4499484,155.04,155.01,21.98406693]
[1748668841266,6.4499484,155.04,155.0,21.98406693]
[1748668842354,6.4499484,155.04,154.98,18.64964886]
[1748668842355,46.18966214,155.05,155.03,21.98406693]
[1748668842558,46.18966214,155.05,155.02,21.98406693]
[1748668842744,6.44966214,155.05,155.02,21.98406693]
[1748668842941,6.44966214,155.05,155.01,21.98406693]
[1748668844269,186.8,155.08,155.03,21.98406693]
[1748668844270,146.9,155.08,155.03,21.98406693]
[1748668844465,111.5869747,155.18,155.07,21.98406693]
[1748668844466,8.03156364,155.09,155.07,21.98406693]
[1748668844672,6.44796364,155.09,155.07,21.98406693]
[1748668844858,6.44796364,155.09,155.06,21.98406693]
[1748668846177,6.44745325,155.1,155.06,21.98406693]
[1748668846562,28.43152018,155.1,155.06,21.98406693]
[1748668847787,21.98406693,155.08,155.02,10.48]
[1748668847989,21.98406693,155.07,155.03,21.98406693]
[1748668848158,6.44911647,155.06,155.03,21.98406693]
[1748668849251,6.44870058,155.07,155.04,21.98406693]
[1748668850350,6.44828475,155.08,155.04,21.98406693]
[1748668851556,6.44828475,155.08,155.05,21.98406693]
[1748668852152,168.88406693,155.1,155.06,21.98406693]
[1748668852459,6.44757649,155.1,155.06,21.98406693]
[1748668855283,6.44757649,155.1,155.07,21.98406693]
[1748668855584,6.44757649,155.1,155.06,21.98406693]
[1748668857990,91.9009957,155.13,155.06,21.98406693]
[1748668857991,9.83463333,155.13,155.06,18.64964886]
[1748668858284,9.83463333,155.13,155.1,21.98406693]
[1748668858665,16.2808539,155.13,155.1,21.98406693]
[1748668859263,16.2808539,155.13,155.03,18.64964886]
[1748668859264,47.98406693,155.11,155.03,18.64964886]
[1748668859465,21.98406693,155.09,155.04,21.98406693]
[1748668859663,21.98406693,155.1,155.05,21.98406693]
[1748668860272,6.44828475,155.08,155.04,21.98406693]
[1748668861563,6.44796305,155.09,155.05,21.98406693]
[1748668862462,28.43202998,155.09,155.04,21.98406693]
[1748668862986,21.98406693,155.07,155.03,21.98406693]
[1748668863170,21.98406693,155.07,155.02,32.44406693]
[1748668863973,21.98406693,155.07,155.03,21.98406693]
[1748668864486,6.44870058,155.07,155.03,21.98406693]
[1748668864879,28.43276751,155.07,155.02,10.46]
[1748668865083,28.43276751,155.07,155.02,32.44406693]
[1748668865593,21.98406693,155.06,155.02,10.46]
[1748668865783,21.98406693,155.05,155.02,10.46]
[1748668866473,6.4499484,155.04,155.02,10.46]
[1748668868784,28.43333592,155.06,155.02,10.46]
[1748668869103,28.43333592,155.06,155.02,32.44406693]
[1748668869603,28.43333592,155.06,155.02,10.46]
[1748668872586,28.43333592,155.06,155.01,21.98406693]
[1748668875984,28.43333592,155.06,155.0,6.45160921]
[1748668876204,28.43333592,155.06,155.01,21.98406693]
[1748668879510,28.43333592,155.06,154.74,164.73915445]
[1748668879511,21.98406693,155.03,154.96,18.64964886]
[1748668879820,21.98406693,155.01,154.96,32.52406693]
[1748668880017,28.43567983,155.0,154.96,10.54]
[1748668880197,21.98406693,154.99,154.96,10.54]
[1748668880398,6.4516129,155.0,154.96,10.54]
[1748668880721,28.43567983,155.0,154.96,10.54]
[1748668880904,28.43567983,155.0,154.96,32.52406693]
[1748668881415,49.58576693,155.02,154.97,21.98406693]
[1748668881615,56.03672427,155.02,154.97,21.98406693]
[1748668882629,56.03672427,155.02,154.96,16.99326882]
[1748668882630,28.43551078,155.01,154.96,16.99326882]
[1748668882797,28.43551078,155.01,154.97,21.98406693]
[1748668883121,56.03673113,155.02,154.97,21.98406693]
[1748668883339,56.03673113,155.02,154.98,21.98406693]
[1748668884019,56.03673113,155.02,154.96,16.99326882]
[1748668884020,26.0,155.02,154.99,21.98406693]
[1748668884190,153.35011067,155.04,155.0,21.98406693]
[1748668884390,146.9,155.04,155.0,21.98406693]
[1748668884595,146.9,155.04,155.01,21.98406693]
[1748668885818,146.9,155.04,155.01,28.43523607]
[1748668885995,146.9,155.04,155.01,21.98406693]
[1748668886198,153.34998439,155.04,155.01,21.98406693]
[1748668886526,146.9,155.04,155.01,21.98406693]
[1748668889227,6.44959832,155.05,155.01,21.98406693]
[1748668891136,28.43366525,155.05,155.01,21.98406693]
[1748668892906,6.44959832,155.05,155.01,21.98406693]
[1748668893105,6.44959832,155.05,155.01,28.43525175]
[1748668893606,49.64786693,155.07,155.02,21.98406693]
[1748668895133,56.09674106,155.07,155.02,21.98406693]
[1748668895926,56.09674106,155.07,155.02,28.43484515]
[1748668897336,56.09674106,155.07,155.02,21.98406693]
[1748668898424,21.98406693,155.05,155.01,32.52406693]
[1748668899018,34.11267413,155.07,155.03,21.98406693]
[1748668899619,56.09674106,155.07,155.03,21.98406693]
[1748668900443,56.09674106,155.07,155.02,28.43476001]
[1748668901627,54.43294106,155.07,155.02,28.43476001]
[1748668901835,175.33246881,155.08,155.03,29.36156693]
[1748668904136,175.33246881,155.08,155.03,35.81190785]
[1748668904535,153.34840188,155.08,155.03,35.81190785]
[1748668904720,175.33246881,155.08,155.03,35.81190785]
[1748668911443,146.9,155.08,155.06,21.98406693]
[1748668912245,54.43132168,155.11,155.06,21.98406693]
[1748668913334,21.98406693,155.1,155.06,21.98406693]
[1748668913536,21.98406693,155.1,155.05,28.43326448]
[1748668914128,21.98406693,155.1,155.06,21.98406693]
[1748668915519,28.43184291,155.1,155.06,21.98406693]
[1748668919855,6.44777598,155.1,155.06,21.98406693]
[1748668920228,6.44677157,155.12,155.08,21.98406693]
[1748668921119,153.34632254,155.13,155.09,21.98406693]
[1748668921524,6.44632254,155.13,155.09,21.98406693]
[1748668923565,21.98406693,155.11,155.07,21.98406693]
[1748668923732,21.98406693,155.12,155.07,21.98406693]
[1748668923937,46.15450548,155.13,155.08,21.98406693]
[1748668924638,6.44632254,155.13,155.09,21.98406693]
[1748668925855,6.44632254,155.13,155.1,21.98406693]
[1748668926248,6.44632254,155.13,155.03,33.3775]
[1748668926249,47.98406693,155.11,154.97,93.9909]
[1748668926428,47.98406693,155.11,155.02,21.98406693]
[1748668926429,21.98406693,155.07,155.02,21.98406693]
[1748668927854,6.44911647,155.06,155.02,21.98406693]
[1748668928558,6.44911647,155.06,154.99,18.933972]
[1748668928734,6.44911647,155.06,155.02,21.98406693]
[1748668929133,28.4331834,155.06,155.01,21.98406693]
[1748668929730,6.44911647,155.06,155.01,21.98406693]
[1748668929930,6.44911647,155.06,155.02,21.98406693]
[1748668930230,6.44880706,155.07,155.04,21.98406693]
[1748668931239,6.44880706,155.07,155.03,32.40406693]
[1748668931644,6.44880706,155.07,155.04,21.98406693]
[1748668932661,6.44820335,155.09,155.05,21.98406693]
[1748668932963,6.44757333,155.1,155.06,21.98406693]
[1748668933256,6.44757333,155.1,155.07,21.98406693]
[1748668933658,6.44703758,155.11,155.07,21.98406693]
[1748668935344,6.44703758,155.11,155.08,21.98406693]
[1748668935662,6.44677585,155.12,155.08,21.98406693]
[1748668936036,6.44677585,155.12,155.09,21.98406693]
[1748668938048,6.4462064,155.13,155.09,21.98406693]
[1748668939363,5.9462064,155.13,155.09,21.98406693]
[1748668941165,27.93027333,155.13,155.09,21.98406693]
[1748668942143,27.93027333,155.13,155.08,21.98406693]
[1748668942994,21.98406693,155.11,155.06,21.98406693]
[1748668944156,21.98406693,155.11,155.07,21.98406693]
[1748668944471,44.04578934,155.13,155.08,21.98406693]
[1748668944767,21.98406693,155.12,155.08,21.98406693]
[1748668945089,21.98406693,155.12,155.07,21.98406693]
[1748668945569,21.98406693,155.11,155.07,21.98406693]
[1748668946167,28.43152018,155.1,155.05,10.3]
[1748668946346,21.98406693,155.09,155.05,10.3]
[1748668946767,6.44745325,155.1,155.06,21.98406693]
[1748668948476,21.98406693,155.09,155.05,10.3]
[1748668949082,21.98406693,155.09,155.05,32.28406693]
[1748668950358,6.44828475,155.08,155.05,32.28406693]
[1748668951892,6.44786897,155.09,155.05,32.28406693]
[1748668952988,1.5173,155.11,155.05,32.28406693]
[1748668952989,1.5173,155.11,155.07,21.98406693]
[1748668954161,7.96447647,155.11,155.07,21.98406693]
[1748668954985,153.34671478,155.12,155.08,21.98406693]
[1748668955313,42.11427179,155.15,155.08,18.64964886]
[1748668955314,6.44639418,155.13,155.08,18.64964886]
[1748668955496,28.43046111,155.13,155.08,40.63371579]
[1748668960116,6.44639418,155.13,155.08,40.63371579]
[1748668960294,28.43046111,155.13,155.08,40.63371579]
[1748668961615,7.7155,155.12,155.08,40.63371579]
[1748668963214,14.16227064,155.12,155.08,40.63371579]
[1748668964103,23.53806693,155.11,155.06,21.98406693]
[1748668964306,21.98406693,155.1,155.05,32.28406693]
[1748668964501,23.53806693,155.1,155.05,32.28406693]
[1748668965096,8.00172479,155.1,155.06,21.98406693]
[1748668965819,8.00172479,155.1,155.07,21.98406693]
[1748668970526,1.554,155.1,155.07,21.98406693]
[1748668973622,8.00154028,155.1,155.07,21.98406693]
[1748668975015,1.554,155.1,155.07,21.98406693]
[1748668976930,1.554,155.1,155.07,28.43274345]
[1748668980556,1.554,155.1,155.08,21.98406693]
[1748668980732,1.554,155.1,155.07,40.63371579]
[1748668982329,1.554,155.1,155.07,47.08229359]
[1748668983229,1.554,155.1,155.07,40.63371579]
[1748668983928,1.554,155.1,155.07,32.69638207]
[1748668984338,1.554,155.1,155.07,39.14494849]
[1748668984517,1.554,155.1,155.09,14.04673321]
[1748668984713,154.88255524,155.14,155.09,32.69638207]
[1748668984927,154.88255524,155.14,155.1,14.04673321]
[1748668986237,168.92928845,155.14,155.1,14.04673321]
[1748668986435,168.92928845,155.14,155.09,32.69638207]
[1748668986638,168.92928845,155.14,155.09,18.64964886]
[1748668986938,154.88255524,155.14,155.1,14.04673321]
[1748668987128,168.92928845,155.14,155.1,14.04673321]
[1748668988016,176.82370967,155.14,155.1,21.94115443]
[1748668988615,154.88255524,155.14,155.11,21.94115443]
[1748668989553,10.57553597,155.16,155.13,21.94115443]
[1748668990640,10.57553597,155.16,155.13,28.38719237]
[1748668992946,10.57553597,155.16,155.13,21.94115443]
[1748668994134,10.57553597,155.16,155.13,28.38721101]
[1748668994631,10.57553597,155.16,155.13,21.94115443]
[1748668995523,8.89522637,155.16,155.13,21.94115443]
[1748668996958,29.92385019,155.18,155.14,21.94115443]
[1748668996959,7.98269576,155.18,155.14,21.94115443]
[1748668997253,1.5384,155.18,155.14,21.94115443]
[1748668998515,7.98255384,155.18,155.14,21.94115443]
[1748668998721,7.98255384,155.18,155.12,6.44662197]
[1748668998722,21.94115443,155.17,155.13,21.94115443]
[1748668998918,21.94115443,155.17,155.13,28.38719099]
[1748668999148,29.92370827,155.18,155.13,28.38719099]
[1748669000836,7.98255384,155.18,155.14,21.94115443]
[1748669001633,1.5384,155.18,155.15,21.94115443]
[1748669003428,1.5384,155.18,155.16,21.94115443]
[1748669003939,146.9,155.19,155.17,21.94115443]
[1748669004141,6.1192,155.21,155.18,21.94115443]
[1748669004339,1.6299,155.22,155.18,21.94115443]
[1748669004340,8.07241294,155.22,155.19,21.94115443]
[1748669004541,1.6299,155.22,155.19,21.94115443]
[1748669006662,1.6299,155.22,155.19,28.38475338]
[1748669007357,146.9,155.23,155.19,28.38475338]
[1748669007652,28.3829032,155.24,155.2,21.94115443]
[1748669010136,28.3829032,155.24,155.2,28.3844506]
[1748669010662,12.4702002,155.25,155.21,21.94115443]
[1748669010962,29.97224143,155.26,155.22,21.94115443]
[1748669011458,21.94115443,155.25,155.21,21.94115443]
[1748669011664,21.94115443,155.25,155.2,38.6844506]
[1748669012349,28.38245864,155.25,155.2,38.6844506]
[1748669012659,6.44130421,155.25,155.21,21.94115443]
[1748669013959,28.38245864,155.25,155.2,38.6844506]
[1748669014570,6.44130421,155.25,155.21,21.94115443]
[1748669015359,28.38245864,155.25,155.2,32.24115443]
[1748669015536,21.94115443,155.24,155.2,32.24115443]
[1748669015962,28.38245864,155.25,155.2,38.68432832]
[1748669016666,28.38245864,155.25,155.21,21.94115443]
[1748669017661,21.94115443,155.25,155.21,28.38396676]
[1748669018162,28.38238919,155.25,155.21,21.94115443]
[1748669020145,29.97220356,155.26,155.21,28.3839595]
[1748669020370,8.03104913,155.26,155.22,21.94115443]
[1748669022346,1.5901,155.26,155.22,28.3835905]
[1748669022847,1.5901,155.26,155.23,21.94115443]
[1748669024243,1.5901,155.26,155.23,28.38316244]
[1748669024859,1.5901,155.26,155.23,21.94115443]
[1748669025044,1.5901,155.26,155.23,28.38319633]
[1748669025454,1.5901,155.26,155.23,21.94115443]
[1748669026467,21.94115443,155.25,155.19,44.79181043]
[1748669026679,21.94115443,155.24,155.2,18.64964886]
[1748669026843,21.94115443,155.24,155.2,40.59080329]
[1748669027367,21.94115443,155.25,155.2,40.59080329]
[1748669028058,28.38261634,155.25,155.2,40.59080329]
[1748669028259,6.44146191,155.25,155.21,21.94115443]
[1748669028845,29.9722023,155.26,155.21,21.94115443]
[1748669029342,23.53125443,155.26,155.21,21.94115443]
[1748669029755,29.97206936,155.26,155.21,21.94115443]
[1748669030672,29.97206936,155.26,155.21,28.38375657]
[1748669031071,29.97206936,155.26,155.22,21.94115443]
[1748669031776,1.5901,155.26,155.22,21.94115443]
[1748669031971,1.5901,155.26,155.23,21.94115443]
[1748669032876,1.5901,155.26,155.23,28.38292725]
[1748669033181,21.94115443,155.28,155.24,21.94115443]
[1748669035768,21.94115443,155.28,155.24,28.38271563]
[1748669037287,28.38129374,155.28,155.23,28.38303627]
[1748669038080,20.45823682,155.28,155.23,14.01809751]
[1748669038954,14.01809751,155.27,155.22,14.01809751]
[1748669040280,20.45862037,155.27,155.23,14.01809751]
[1748669043983,20.45862037,155.27,155.23,20.4600866]
[1748669044354,14.01809751,155.27,155.23,20.4600866]
[1748669044856,20.45857384,155.27,155.23,20.4600866]
[1748669045483,20.45857384,155.27,155.23,14.01809751]
[1748669048276,20.45857384,155.27,155.23,20.46006901]
[1748669048764,6.44047633,155.27,155.23,20.46006901]
[1748669049093,20.45826299,155.28,155.23,20.46006901]
[1748669049294,14.01809751,155.28,155.24,14.01809751]
[1748669049590,22.78062001,155.29,155.25,14.01809751]
[1748669049591,16.34092161,155.29,155.25,14.01809751]
[1748669049795,9.93942161,155.29,155.25,14.01809751]
[1748669049997,9.93942161,155.29,155.26,14.01809751]
[1748669050295,1.6603,155.3,155.26,14.01809751]
[1748669050474,15.67839751,155.3,155.26,14.01809751]
[1748669050877,1.6603,155.3,155.26,14.01809751]
[1748669051067,22.11757854,155.3,155.26,14.01809751]
[1748669051860,22.11757854,155.3,155.25,6.44103745]
[1748669052096,14.01809751,155.28,155.24,20.45964946]
[1748669052589,14.01809751,155.29,155.24,20.45964946]
[1748669052760,22.11757854,155.3,155.25,14.01809751]
[1748669055270,14.01809751,155.29,155.25,14.01809751]
[1748669057196,14.01809751,155.29,155.25,20.45930899]
[1748669058193,20.45773942,155.29,155.25,20.45930899]
[1748669059393,20.45773942,155.29,155.25,14.01809751]
[1748669059792,6.43964191,155.29,155.25,14.01809751]
[1748669060001,20.45773942,155.29,155.25,14.01809751]
[1748669060698,6.43964191,155.29,155.25,14.01809751]
[1748669060881,20.45773942,155.29,155.25,14.01809751]
[1748669061278,20.45773942,155.29,155.25,20.45931472]
[1748669062199,15.67839751,155.3,155.25,20.45931472]
[1748669062387,15.67839751,155.3,155.26,14.01809751]
[1748669062903,22.11765776,155.3,155.26,14.01809751]
[1748669063826,8.09956025,155.3,155.26,14.01809751]
[1748669063970,22.11765776,155.3,155.26,14.01809751]
[1748669067831,22.11765776,155.3,155.25,14.01809751]
[1748669069128,22.11765776,155.3,155.25,20.45909486]
[1748669075246,8.09956025,155.3,155.25,20.45909486]
[1748669075538,22.11765776,155.3,155.25,20.45909486]
[1748669076470,14.01809751,155.28,155.21,6.44288383]
[1748669076738,14.01809751,155.26,155.21,24.27809751]
[1748669076941,6.5831,155.28,155.21,24.27809751]
[1748669076942,14.01809751,155.25,155.21,24.27809751]
[1748669077144,14.01809751,155.25,155.21,10.26]
[1748669078230,14.01809751,155.25,155.21,24.27809751]
[1748669079024,20.45963604,155.25,155.21,10.26]
[1748669079265,6.44153853,155.25,155.21,24.27809751]
[1748669079743,6.44153853,155.25,155.21,30.72097761]
[1748669080422,6.44153853,155.25,155.21,24.27809751]
[1748669081527,20.45963604,155.25,155.21,24.27809751]
[1748669084935,20.45963604,155.25,155.21,10.26]
[1748669085952,14.01809751,155.24,155.21,10.26]
[1748669086131,14.01809751,155.24,155.17,137.38964886]
[1748669086132,20.46056626,155.22,155.17,117.01809751]
[1748669086334,14.01809751,155.21,155.17,117.01809751]
[1748669088242,6.44329896,155.2,155.17,24.27809751]
[1748669088933,20.46139647,155.2,155.17,10.26]
[1748669089263,14.01809751,155.18,155.17,10.26]
[1748669089439,14.01809751,155.18,155.13,24.27809751]
[1748669089644,14.01809751,155.17,155.13,24.27809751]
[1748669089839,14.01809751,155.17,155.13,10.26]
[1748669090253,6.44496004,155.16,155.13,10.26]
[1748669090441,6.44496004,155.16,155.13,24.27809751]
[1748669092166,21.93314351,155.17,155.13,32.19314351]
[1748669094146,28.37801486,155.17,155.13,32.19314351]
[1748669095962,28.3772729,155.18,155.13,32.19314351]
[1748669097647,28.3772729,155.18,155.14,21.93314351]
[1748669100071,28.3772729,155.18,155.13,32.19314351]
[1748669103452,28.3772729,155.18,155.14,21.93314351]
[1748669106369,28.3772729,155.18,155.13,32.19314351]
[1748669108572,28.3772729,155.18,155.13,10.26]
[1748669108774,28.3772729,155.18,155.13,32.19314351]
[1748669109979,28.3772729,155.18,155.13,38.63922419]
[1748669110694,28.3772729,155.18,155.13,32.19314351]
[1748669111676,6.44496004,155.16,155.13,32.19314351]
[1748669111875,6.44496004,155.16,155.13,10.26]
[1748669112078,20.48383676,155.16,155.13,10.26]
[1748669112882,14.03887672,155.15,155.1,14.03887672]
[1748669113351,14.03887672,155.14,155.1,14.03887672]
[1748669113558,6.44496004,155.16,155.09,10.26]
[1748669113559,14.03887672,155.13,155.09,10.26]
[1748669113771,14.03887672,155.1,155.05,10.26]
[1748669113984,14.03887672,155.08,155.05,10.26]
[1748669115569,20.4875006,155.08,155.05,10.26]
[1748669116071,28.40892573,155.08,155.05,10.26]
[1748669117584,28.40902076,155.07,155.05,10.26]
[1748669118283,28.40902076,155.07,155.02,47.96030185]
[1748669120787,6.44871891,155.07,155.02,54.41101408]
[1748669120987,28.40902076,155.07,155.02,54.41101408]
[1748669121768,21.96030185,155.07,155.02,32.45071223]
[1748669122074,21.96030185,155.07,155.02,54.41101408]
[1748669123290,1.6225,155.08,155.04,21.96030185]
[1748669124490,1.6225,155.08,155.05,6.4495324]
[1748669125286,23.58280185,155.08,155.05,6.4495324]
[1748669126993,23.58280185,155.08,155.04,28.41007209]
[1748669127297,23.58280185,155.08,155.04,6.44977024]
[1748669127678,30.03113027,155.08,155.02,6.45078054]
[1748669127885,21.96030185,155.06,155.02,28.41108239]
[1748669128588,21.96030185,155.06,155.02,6.45078054]
[1748669128898,28.40940141,155.07,155.02,28.41108239]
[1748669131578,28.40940141,155.07,155.02,21.96030185]
[1748669131776,21.96030185,155.06,155.01,38.65134982]
[1748669132879,6.44909956,155.07,155.01,38.65134982]
[1748669132880,21.96030185,155.05,155.01,10.24]
[1748669133097,6.4499484,155.04,155.01,10.24]
[1748669133295,28.41025025,155.04,155.01,10.24]
[1748669134597,21.96030185,155.02,154.98,21.96030185]
[1748669134801,21.96030185,155.02,154.97,38.67280306]
[1748669135595,28.41126373,155.02,154.97,38.67280306]
[1748669136294,28.41126373,155.02,154.97,32.22030185]
[1748669136483,28.41126373,155.02,154.97,10.26]
[1748669136484,21.96030185,155.01,154.97,10.26]
[1748669137497,30.06286373,155.02,154.98,21.96030185]
[1748669137685,1.6516,155.02,154.98,21.96030185]
[1748669137872,1.6516,155.02,154.98,28.41261726]
[1748669138474,8.10243194,155.02,154.98,21.96030185]
[1748669140016,30.06273379,155.02,154.98,21.96030185]
[1748669143904,22.16620463,155.02,154.98,14.06377269]
[1748669144419,14.06377269,155.04,154.99,14.06377269]
[1748669145094,20.51391272,155.04,154.99,14.06377269]
[1748669145809,6.45014003,155.04,154.99,20.5157901]
[1748669146014,20.51391272,155.04,154.99,14.06377269]
[1748669146219,14.06377269,155.02,154.97,24.32377269]
[1748669146395,14.06377269,155.01,154.97,10.26]
[1748669146581,14.06377269,155.0,154.97,10.26]
[1748669149123,20.51549622,155.0,154.97,10.26]
[1748669149895,28.43255559,155.0,154.97,10.26]
[1748669150306,6.45172353,155.0,154.97,10.26]
[1748669152121,28.43255559,155.0,154.97,10.26]
[1748669153617,21.98083206,155.0,154.97,10.26]
[1748669155592,28.43247267,155.0,154.97,10.26]
[1748669158389,21.98083206,154.99,154.97,10.26]
[1748669158719,21.98083206,154.99,154.94,21.98083206]
[1748669160102,21.98083206,154.99,154.93,10.24]
[1748669160103,21.98083206,154.99,154.93,32.22083206]
[1748669160419,28.43327753,154.98,154.93,38.67529763]
[1748669161329,21.98083206,154.97,154.93,10.24]
[1748669162092,21.98083206,154.95,154.93,10.24]
[1748669162296,21.98083206,154.96,154.91,21.98083206]
[1748669162593,28.43433013,154.96,154.91,28.4361492]
[1748669162837,39.5,154.99,154.94,21.98083206]
[1748669163003,146.9,155.0,154.96,21.98083206]
[1748669163004,153.35195347,155.0,154.96,21.98083206]
[1748669163526,153.35195347,155.0,154.95,18.64964886]
[1748669163527,146.9,155.0,154.95,18.64964886]
[1748669163730,154.9564956,155.06,154.99,21.98083206]
[1748669163932,1.6072,155.06,155.02,21.98083206]
[1748669164135,8.05644365,155.06,155.02,21.98083206]
[1748669165602,1.6072,155.06,155.02,28.43158314]
[1748669166320,8.05635622,155.06,155.02,21.98083206]
[1748669166923,30.03718828,155.06,155.02,21.98083206]
[1748669168025,23.58803206,155.06,155.02,28.43160808]
[1748669168204,8.05642179,155.06,155.02,21.98083206]
[1748669168405,30.03725385,155.06,155.02,21.98083206]
[1748669168605,21.98083206,155.05,155.0,21.98083206]
[1748669169101,21.98083206,155.04,154.99,32.22083206]
[1748669169703,21.98083206,155.03,154.99,32.22083206]
[1748669170106,21.98083206,155.04,154.99,38.67281481]
[1748669170305,21.98083206,155.04,155.0,21.98083206]
[1748669170601,1.6072,155.06,155.01,21.98083206]
[1748669170806,1.6072,155.06,155.02,21.98083206]
[1748669171006,1.6072,155.06,154.99,16.69198275]
[1748669171007,1.6072,155.06,155.03,21.98083206]
[1748669171520,1.6072,155.06,155.02,21.98083206]
[1748669171720,30.03719787,155.06,155.02,21.98083206]
[1748669171901,21.98083206,155.05,155.01,21.98083206]
[1748669172100,28.43067076,155.05,154.99,16.69198275]
[1748669172303,28.43067076,155.05,155.01,21.98083206]
[1748669173600,21.98083206,155.04,154.99,32.22083206]
[1748669174349,21.98083206,155.03,154.99,10.24]
[1748669174908,21.98083206,155.04,154.99,32.22083206]
[1748669175648,6.45036444,155.03,154.99,32.22083206]
[1748669175837,28.43093603,155.04,154.99,38.67284247]
[1748669178730,23.58803206,155.06,155.01,21.98083206]
[1748669179120,21.98083206,155.05,155.0,21.98083206]
[1748669179434,21.98083206,155.04,154.99,32.22083206]
[1748669180535,21.98083206,155.03,154.99,10.24]
[1748669180831,21.98083206,155.0,154.95,32.22083206]
[1748669181136,21.98083206,155.0,154.95,21.98083206]
[1748669181442,23.49563206,155.0,154.95,21.98083206]
[1748669181605,21.98083206,154.97,154.93,10.24]
[1748669182229,21.98083206,154.96,154.93,10.24]
[1748669182710,28.43448933,154.96,154.93,10.24]
[1748669183016,28.43448933,154.96,154.91,21.98083206]
[1748669183212,6.45365727,154.96,154.92,21.98083206]
[1748669183740,28.43448933,154.96,154.91,21.98083206]
[1748669184538,28.43448933,154.96,154.91,28.43607691]
[1748669185529,28.43448933,154.96,154.91,21.98083206]
[1748669185915,28.43448933,154.96,154.91,28.43605789]
[1748669187017,28.43448933,154.96,154.91,21.98083206]
[1748669187821,28.43448933,154.96,154.91,28.43618073]
[1748669188020,28.43448933,154.96,154.91,21.98083206]
[1748669188739,21.98083206,154.95,154.9,21.98083206]
[1748669188933,6.45411126,154.94,154.9,21.98083206]
[1748669189746,6.45411126,154.94,154.89,42.69603842]
[1748669189922,6.45411126,154.94,154.9,21.98083206]
[1748669190940,6.45411126,154.94,154.89,42.69603842]
[1748669191333,21.98083206,154.96,154.91,21.98083206]
[1748669192120,28.43416682,154.96,154.91,21.98083206]
[1748669196342,21.98083206,154.95,154.9,28.43660946]
[1748669196942,28.43487077,154.95,154.9,28.43660946]
[1748669197247,28.43487077,154.95,154.9,28.43660596]
[1748669199427,28.43487077,154.95,154.91,21.98083206]